bitfinex/quotes_ETHUSD_20241101
["timestamp","ask_amount","ask_price","bid_price","bid_amount"]
[1730476950202,3.99044,2506.0,2505.3,0.07982487]
[1730476950342,3.99044,2506.0,2505.2,3.99154]
[1730476950537,3.9904,2506.1,2505.3,4.07125041]
[1730476950773,3.9904,2506.1,2505.4,3.99128]
[1730476950978,1.1553,2506.2,2505.7,3.99079]
[1730476951409,0.918728,2506.9,2506.0,3.9903]
[1730476951410,1.2165,2506.6,2506.0,3.9903]
[1730476951578,1.2165,2506.6,2506.1,3.99025]
[1730476951777,1.2165,2506.6,2506.4,3.98976]
[1730476952048,1.191,2507.1,2506.3,3.98983]
[1730476952328,3.98897,2507.0,2506.4,0.5849802]
[1730476952466,3.98897,2507.0,2506.3,3.98993]
[1730476952860,3.98897,2507.0,2506.1,3.99016]
[1730476953100,1.191,2507.1,2506.4,3.98969]
[1730476953309,1.191,2507.1,2505.9,3.99058]
[1730476953506,1.191,2507.1,2506.5,3.98953]
[1730476953705,3.98883,2507.0,2506.3,3.98985]
[1730476954008,0.517983,2507.0,2505.8,1.1455]
[1730476954305,1.191,2507.1,2506.4,3.98978]
[1730476954504,1.191,2507.1,2506.7,3.98917]
[1730476954905,1.191,2507.1,2506.5,7.97903]
[1730476955066,1.191,2507.1,2506.5,3.98951]
[1730476955466,1.191,2507.1,2506.0,16.25315921]
[1730476955467,1.191,2507.1,2506.7,3.98918]
[1730476955710,3.98811,2507.5,2506.9,3.98888]
[1730476955711,1.1136,2507.4,2506.9,3.98888]
[1730476956008,3.98758,2507.8,2506.4,1.6863]
[1730476956009,3.98758,2507.8,2506.6,4.06917471]
[1730476956301,1.2144,2507.7,2507.2,3.98842]
[1730476956705,1.2144,2507.7,2507.3,3.98834]
[1730476956888,1.2144,2508.1,2507.5,3.988]
[1730476957108,1.2144,2508.1,2507.6,3.98786]
[1730476957296,1.2144,2508.1,2507.6,0.07975311]
[1730476957619,1.2144,2508.1,2507.5,3.98795]
[1730476957819,1.2144,2508.1,2507.6,3.98785]
[1730476957993,1.2144,2508.1,2507.7,3.98771]
[1730476958200,3.98661,2508.4,2507.7,3.98771]
[1730476958389,1.1778,2508.3,2507.7,3.98762]
[1730476958724,1.1778,2508.3,2507.7,3.98761]
[1730476958923,1.1778,2508.6,2508.0,3.98723]
[1730476959140,1.1778,2508.6,2508.1,3.98694]
[1730476959343,1.1778,2508.6,2508.2,3.98683]
[1730476959621,1.1778,2508.6,2508.1,3.98694]
[1730476959825,1.1778,2508.6,2507.9,3.98728]
[1730476960023,1.71651017,2508.6,2508.0,3.98724]
[1730476960235,5.70281017,2508.6,2507.9,3.98728]
[1730476960409,5.70281017,2508.6,2508.0,3.98721]
[1730476960410,1.71651017,2508.6,2508.0,3.98721]
[1730476960720,1.1778,2508.6,2508.1,3.98706]
[1730476960926,1.1778,2508.6,2508.2,3.98682]
[1730476961083,0.1,2508.7,2508.2,3.98682]
[1730476961284,0.1,2508.7,2508.0,3.98713]
[1730476961483,0.1,2508.7,2508.1,3.98708]
[1730476961929,0.1,2508.7,2508.3,3.98674]
[1730476962225,0.1,2508.7,2508.3,3.98672]
[1730476962384,0.1,2508.7,2508.3,7.9734]
[1730476962793,0.1,2508.7,2508.4,3.98658]
[1730476963188,0.1,2508.7,2508.6,3.98628]
[1730476963918,0.1,2508.7,2508.3,3.98675]
[1730476964124,0.1232417,2508.8,2508.4,3.98658]
[1730476964328,0.1232417,2508.8,2508.5,3.98643]
[1730476964644,0.1232417,2508.8,2508.6,3.98628]
[1730476964849,0.1232417,2508.8,2508.4,3.98651]
[1730476965050,0.1232417,2508.8,2508.5,3.98632]
[1730476965256,0.1232417,2508.8,2508.6,3.98627]
[1730476965409,0.1232417,2508.8,2508.4,3.9865]
[1730476965809,0.1232417,2508.8,2508.5,3.98632]
[1730476966047,0.1232417,2508.8,2508.6,3.98626]
[1730476966255,0.1232417,2508.8,2508.5,0.07972004]
[1730476966556,0.1232417,2508.8,2508.4,3.9865]
[1730476966753,0.1232417,2508.8,2508.5,3.98643]
[1730476967110,0.1232417,2508.8,2508.3,3.98661]
[1730476967316,1.3356417,2508.8,2508.3,3.98661]
[1730476967537,1.3356417,2508.8,2508.3,7.97342]
[1730476967742,1.3356417,2508.8,2508.4,3.98649]
[1730476968072,0.1232417,2508.8,2508.6,3.98613]
[1730476968376,0.1232417,2508.8,2508.4,3.98648]
[1730476968510,0.1232417,2508.8,2508.5,3.98643]
[1730476969020,0.1232417,2508.8,2508.4,7.973]
[1730476969219,0.1232417,2508.8,2508.7,3.98612]
[1730476969961,0.1232417,2508.8,2508.1,12.03785921]
[1730476970259,0.1232417,2508.8,2508.7,3.98612]
[1730476971474,0.1232417,2508.8,2508.7,5.19223014]
[1730476971631,0.1232417,2508.8,2508.7,5.11252]
[1730476972035,0.1232417,2508.8,2508.6,3.98616]
[1730476972534,0.1232417,2508.8,2508.7,3.98612]
[1730476972736,3.98288,2510.8,2510.0,3.98393]
[1730476972958,3.98288,2510.8,2510.3,4.76034004]
[1730476973158,3.98259,2511.0,2510.3,4.76034004]
[1730476973367,1.2027,2511.1,2510.3,8.74392004]
[1730476973530,3.9821,2511.3,2510.3,11.74392004]
[1730476973734,3.98217,2511.2,2510.3,11.74392004]
[1730476974059,1.2542417,2511.4,2510.3,11.74392004]
[1730476974060,5.2360817,2511.4,2510.3,11.74392004]
[1730476974404,1.2542417,2511.4,2510.3,12.29392004]
[1730476974538,1.2542417,2511.4,2510.3,12.81955637]
[1730476974737,1.2542417,2511.4,2510.3,12.26955637]
[1730476974938,5.2361517,2511.4,2510.3,6.98358]
[1730476975138,5.2361517,2511.4,2510.3,12.34921112]
[1730476975139,3.98223,2511.2,2510.3,12.34921112]
[1730476975333,5.2362017,2511.4,2510.3,12.26955637]
[1730476975334,5.2361917,2511.4,2510.3,12.26955637]
[1730476975535,1.2542417,2511.4,2510.3,12.26955637]
[1730476975772,5.2361817,2511.4,2510.3,12.26955637]
[1730476975993,3.98216,2511.2,2510.3,12.26955637]
[1730476976194,3.982,2511.3,2510.3,12.26955637]
[1730476976497,5.2361817,2511.4,2510.3,12.81955637]
[1730476976498,1.2542417,2511.4,2510.3,12.81955637]
[1730476976666,1.2542417,2511.4,2510.3,12.26955637]
[1730476976875,3.9824,2511.1,2510.3,12.26955637]
[1730476977195,1.2542417,2511.4,2510.3,12.26955637]
[1730476977405,9.16225,2511.3,2510.3,12.26955637]
[1730476977697,3.98257,2511.0,2510.3,12.26955637]
[1730476977857,7.96455,2511.2,2510.3,12.26955637]
[1730476978058,1.198,2511.3,2510.3,5.28597637]
[1730476978287,1.198,2511.3,2510.2,3.98362]
[1730476978288,3.98285,2510.8,2510.2,3.98362]
[1730476978512,7.96488,2511.1,2510.3,3.98358]
[1730476978712,3.98265,2510.9,2510.2,7.96727]
[1730476978913,3.98265,2510.9,2510.3,3.98358]
[1730476979194,3.98242,2511.1,2510.3,3.98358]
[1730476979195,7.96489,2511.1,2510.3,4.06324101]
[1730476979414,3.98266,2510.9,2510.2,3.98362]
[1730476979627,1.145,2510.6,2509.7,1.127]
[1730476979806,3.98403,2510.1,2509.4,3.98491]
[1730476980027,3.98431,2509.9,2509.2,3.98521]
[1730476980351,4.145,2510.2,2509.3,0.07969111]
[1730476980352,1.145,2510.2,2509.3,0.07969111]
[1730476980493,1.145,2510.2,2509.3,3.98513]
[1730476980846,1.145,2510.2,2508.7,9.27201637]
[1730476980847,5.12702,2509.4,2508.7,9.27201637]
[1730476981137,5.12614,2509.9,2508.8,0.07971078]
[1730476981343,3.98472,2509.6,2509.0,3.98554]
[1730476981489,3.98497,2509.5,2508.7,9.27198637]
[1730476981694,1.1419,2509.9,2508.7,9.27198637]
[1730476981695,3.98525,2509.3,2508.7,9.27198637]
[1730476981894,3.98481,2509.6,2508.9,3.98568]
[1730476982091,3.98489,2509.5,2508.9,3.98568]
[1730476982322,3.98481,2509.6,2509.0,0.0797019]
[1730476982542,5.12621,2509.9,2509.2,3.98533]
[1730476982744,1.1419,2509.9,2509.3,4.06476982]
[1730476982905,1.1419,2509.9,2509.4,3.98493]
[1730476983127,1.1419,2509.9,2509.5,0.07968295]
[1730476983416,9.18233,2510.2,2509.3,1.1637]
[1730476983601,3.98409,2510.0,2509.4,3.98485]
[1730476983810,3.98455,2509.7,2509.1,5.28597637]
[1730476984116,4.504049,2510.0,2509.2,3.98524]
[1730476984322,4.504049,2510.0,2509.1,3.98548]
[1730476984509,1.2146,2510.2,2509.2,0.07969393]
[1730476984710,5.19835,2510.2,2509.6,3.98459]
[1730476984917,5.19837,2510.2,2509.6,3.98459]
[1730476985093,0.002,2510.4,2510.0,3.98394]
[1730476985293,3.98544,2510.4,2509.9,6.98422]
[1730476985520,3.98544,2510.4,2509.8,3.0]
[1730476985729,3.98544,2510.4,2509.8,6.98435]
[1730476986074,3.98544,2510.4,2510.3,3.98358]
[1730476986075,0.002,2510.4,2510.3,3.98358]
[1730476986218,0.002,2510.4,2510.1,3.98378]
[1730476986569,0.002,2510.4,2509.9,8.36564966]
[1730476986570,0.002,2510.4,2510.3,3.98358]
[1730476987123,0.002,2510.4,2510.3,4.06323785]
[1730476987331,0.002,2510.4,2510.3,4.06323584]
[1730476987852,0.002,2510.4,2510.3,0.07965584]
[1730476988153,0.002,2510.4,2510.3,4.06323584]
[1730476989062,0.002,2510.4,2510.3,5.20223584]
[1730476989270,0.002,2510.4,2510.3,4.06323584]
[1730476989556,3.98383,2510.2,2509.5,3.98485]
[1730476989796,3.98383,2510.2,2509.6,3.98468]
[1730476989935,3.98417,2510.0,2509.2,3.98524]
[1730476990112,3.98425,2509.9,2509.3,3.9851]
[1730476990313,3.98547,2510.4,2508.9,0.0982749]
[1730476990314,1.182,2509.7,2508.9,3.98567]
[1730476990553,1.182,2509.7,2509.0,3.98559]
[1730476990554,3.98477,2509.6,2509.0,3.98559]
[1730476990857,1.182,2509.7,2508.7,1.2241]
[1730476991014,1.182,2509.7,2508.3,5.28597637]
[1730476991015,3.98589,2508.9,2508.3,5.21073]
[1730476991215,3.98623,2508.7,2508.1,3.98696]
[1730476991462,1.1606,2509.0,2508.2,4.06662513]
[1730476991611,1.1606,2509.0,2508.4,3.98651]
[1730476991811,1.1606,2509.0,2508.5,0.07971524]
[1730476992213,1.1606,2509.0,2508.6,3.98627]
[1730476992468,1.1606,2509.0,2508.6,3.98621]
[1730476992672,1.1606,2509.0,2508.5,4.06614524]
[1730476992822,1.1606,2509.0,2508.6,0.07971524]
[1730476993021,1.1606,2509.0,2508.6,4.06598524]
[1730476993321,1.1606,2509.0,2508.6,0.07971524]
[1730476993720,1.1196,2509.4,2508.3,4.53673]
[1730476993920,7.9706,2509.3,2508.7,3.9861]
[1730476994202,3.98553,2509.1,2508.5,3.98633]
[1730476994396,3.98547,2509.2,2508.6,3.98626]
[1730476994670,3.98547,2509.2,2508.0,1.205]
[1730476994671,0.909019,2509.2,2508.0,1.205]
[1730476994957,3.98544,2509.2,2508.6,3.98625]
[1730476995278,5.10468,2509.4,2508.0,4.205]
[1730476995438,3.98599,2508.8,2508.4,3.0]
[1730476995622,3.98573,2509.0,2508.5,0.07971944]
[1730476995972,3.98542,2509.2,2508.5,0.07971944]
[1730476996173,3.98517,2509.3,2508.5,4.06603944]
[1730476996317,3.98517,2509.3,2508.2,3.0]
[1730476996518,1.2166,2508.8,2508.2,3.0]
[1730476996720,1.2166,2508.8,2507.9,3.98728]
[1730476997046,1.2166,2508.8,2508.2,3.98679]
[1730476997247,5.20265,2508.8,2508.2,3.98679]
[1730476997435,5.20265,2508.8,2508.0,3.98712]
[1730476997436,3.98621,2508.7,2508.0,3.98712]
[1730476997642,1.2166,2508.8,2507.7,1.2065]
[1730476997643,3.98634,2508.6,2507.7,1.2065]
[1730476997964,3.98634,2508.6,2508.0,3.98712]
[1730476998366,3.98634,2508.6,2508.1,3.98708]
[1730476999223,5.20269,2508.8,2508.1,3.98708]
[1730476999424,3.98617,2508.7,2508.1,3.98694]
[1730476999668,3.98617,2508.7,2508.1,7.97394]
[1730476999819,3.98556,2509.1,2508.6,3.98625]
[1730476999820,3.9856,2509.1,2508.6,3.98625]
[1730477000027,3.98589,2508.9,2508.4,3.98648]
[1730477000239,1.1279,2509.2,2508.4,3.98648]
[1730477000438,3.98573,2509.0,2508.4,3.98648]
[1730477000649,3.98636,2508.6,2508.3,3.0]
[1730477000852,3.98644,2508.5,2507.8,5.12282]
[1730477001166,3.98669,2508.4,2507.8,3.98748]
[1730477001286,3.98767,2507.8,2507.1,3.98867]
[1730477001599,3.98767,2507.8,2507.2,3.98841]
[1730477001600,1.2015,2507.7,2507.2,3.98841]
[1730477001759,3.98734,2508.0,2507.4,3.9881]
[1730477001959,1.1479,2508.1,2507.5,4.06767053]
[1730477002261,3.98637,2508.6,2507.9,3.98732]
[1730477002262,3.98651,2508.5,2507.9,3.98732]
[1730477002461,3.98651,2508.5,2507.9,3.98731]
[1730477002660,3.98641,2508.6,2508.4,0.212911]
[1730477002862,1.1888,2508.7,2508.4,0.212911]
[1730477004018,5.1271,2509.1,2508.6,3.98628]
[1730477004562,1.1416,2509.1,2508.6,4.06590684]
[1730477004761,5.15872,2509.4,2508.9,3.98573]
[1730477004958,1.1737,2509.4,2508.9,3.98573]
[1730477005207,1.1737,2509.7,2509.2,3.98521]
[1730477005416,5.98392857,2510.0,2509.5,3.98478]
[1730477005616,1.99976857,2510.0,2509.7,3.98443]
[1730477005767,1.99976857,2510.0,2509.8,3.98435]
[1730477005964,1.99976857,2510.0,2509.9,3.98422]
[1730477006577,1.99976857,2510.0,2509.8,3.98426]
[1730477006783,1.99976857,2510.0,2509.9,3.98422]
[1730477007385,1.99976857,2510.0,2509.9,5.13882]
[1730477007705,1.99976857,2510.0,2509.9,8.68882]
[1730477007884,1.99976857,2510.0,2509.9,13.97479637]
[1730477009409,1.99976857,2510.0,2509.9,8.13882]
[1730477010811,1.99976857,2510.0,2509.9,13.97479637]
[1730477011901,1.99976857,2510.0,2509.4,3.98495]
[1730477011902,1.1722,2509.9,2509.4,3.98495]
[1730477012103,1.99976857,2510.0,2509.6,3.9846]
[1730477012272,1.99976857,2510.0,2509.2,3.98527]
[1730477012475,1.99976857,2510.0,2509.8,7.96856]
[1730477012786,1.99976857,2510.0,2509.9,3.98422]
[1730477013305,1.99976857,2510.0,2509.8,3.98427]
[1730477013511,1.99976857,2510.0,2509.8,3.98424]
[1730477013828,1.99976857,2510.0,2509.9,3.98422]
[1730477015712,1.99976857,2510.0,2509.9,7.06389447]
[1730477015876,1.99976857,2510.0,2509.9,6.98422]
[1730477017085,1.99976857,2510.0,2509.8,3.0]
[1730477017287,1.99976857,2510.0,2509.3,1.1692]
[1730477017288,3.98551,2510.4,2509.7,0.07967768]
[1730477017489,3.98359,2510.3,2509.9,3.0]
[1730477018021,3.98359,2510.3,2509.8,3.98424]
[1730477018392,3.98362,2510.3,2509.8,3.9843]
[1730477018717,0.002,2510.4,2509.8,3.0]
[1730477018921,3.9836,2510.3,2509.8,3.0]
[1730477019413,0.002,2510.4,2510.1,3.98388]
[1730477019715,0.002,2510.4,2510.1,7.9676]
[1730477020021,0.002,2510.4,2510.1,3.9838]
[1730477020317,0.002,2510.4,2510.1,3.98387]
[1730477020626,0.002,2510.4,2509.8,3.98434]
[1730477020781,0.002,2510.4,2509.7,3.98441]
[1730477020782,0.002,2510.4,2509.9,3.9842]
[1730477020976,3.98556,2510.4,2509.9,3.9842]
[1730477021183,3.98556,2510.4,2509.9,7.96831]
[1730477021493,3.98556,2510.4,2509.6,3.0]
[1730477021494,0.002,2510.4,2510.1,3.98385]
[1730477022003,0.002,2510.4,2510.0,3.98406]
[1730477022176,0.002,2510.4,2509.8,3.9843]
[1730477022177,3.98361,2510.3,2509.8,3.9843]
[1730477022377,0.002,2510.4,2509.9,3.98422]
[1730477022598,0.002,2510.4,2510.1,3.98387]
[1730477022797,0.002,2510.4,2509.9,7.96829]
[1730477023010,0.002,2510.4,2510.0,3.98397]
[1730477023213,0.002,2510.4,2510.1,3.98389]
[1730477023376,0.002,2510.4,2510.1,4.06355824]
[1730477023578,0.002,2510.4,2510.1,8.04737824]
[1730477023884,0.002,2510.4,2510.0,3.98406]
[1730477024221,0.002,2510.4,2509.6,3.0]
[1730477024222,3.98359,2510.3,2509.8,3.98428]
[1730477024437,3.98543,2510.4,2509.9,4.06381586]
[1730477024721,3.98543,2510.4,2509.9,3.98414]
[1730477024882,0.002,2510.4,2510.0,3.98403]
[1730477025077,3.98552,2510.4,2509.9,7.96825]
[1730477025301,3.98552,2510.4,2509.9,3.98411]
[1730477025495,0.002,2510.4,2510.0,0.07967587]
[1730477025716,0.002,2510.4,2510.1,3.98382]
[1730477026155,0.002,2510.4,2510.1,3.9838]
[1730477026275,0.002,2510.4,2510.2,3.9837]
[1730477026482,0.002,2510.4,2510.3,3.98358]
[1730477027621,0.002,2510.4,2509.6,3.0]
[1730477027622,3.98383,2510.2,2509.3,1.1692]
[1730477027790,0.002,2510.4,2509.2,3.9852]
[1730477027791,1.1848,2510.0,2509.2,3.9852]
[1730477027989,1.1848,2510.0,2509.0,1.0889]
[1730477027990,3.98438,2509.8,2509.0,1.0889]
[1730477028179,1.1848,2510.0,2509.0,1.0889]
[1730477028376,1.1848,2510.0,2509.8,3.98435]
[1730477028617,1.1848,2510.0,2509.6,3.98458]
[1730477028794,1.1848,2510.0,2509.9,3.98422]
[1730477029125,3.98556,2510.4,2509.9,3.98422]
[1730477029126,5.09058,2510.3,2509.9,3.98422]
[1730477029438,2.014593,2510.3,2509.7,3.9845]
[1730477029730,5.0907,2510.3,2509.8,3.98437]
[1730477030040,0.002,2510.4,2509.7,3.0]
[1730477030181,0.002,2510.4,2509.6,1.1]
[1730477030385,0.002,2510.4,2509.2,1.1]
[1730477030386,3.98397,2510.1,2509.2,1.1]
[1730477030628,7.96797,2510.1,2509.6,3.98461]
[1730477030784,5.11833,2509.9,2509.4,3.98492]
[1730477030981,3.98438,2509.8,2509.4,3.0]
[1730477031225,1.134,2509.9,2509.4,3.98491]
[1730477031536,1.134,2509.9,2509.6,3.98469]
[1730477031823,1.134,2509.9,2509.6,7.96932]
[1730477032038,1.1452,2510.3,2509.7,0.07968347]
[1730477032325,0.002,2510.4,2510.1,3.9838]
[1730477032639,0.002,2510.4,2509.4,4.0943]
[1730477032640,0.002,2510.4,2510.3,6.98358]
[1730477033521,0.002,2510.4,2510.3,7.06324079]
[1730477033728,0.002,2510.4,2510.3,6.98358]
[1730477034134,0.002,2510.4,2510.3,7.06322652]
[1730477034304,0.1232417,2511.4,2511.1,3.98218]
[1730477034500,0.1232417,2511.4,2510.9,3.0]
[1730477034703,0.1232417,2511.4,2511.3,3.982]
[1730477034952,0.1232417,2511.4,2510.9,3.98253]
[1730477035230,0.1232417,2511.4,2511.0,3.98244]
[1730477035596,0.1232417,2511.4,2511.1,3.9823]
[1730477035910,0.1232417,2511.4,2511.2,3.98205]
[1730477036093,0.1232417,2511.4,2511.3,3.982]
[1730477036520,0.1232417,2511.4,2511.2,3.98208]
[1730477036838,0.1232417,2511.4,2511.0,3.98235]
[1730477037333,0.1232417,2511.4,2511.0,7.96474]
[1730477037636,4.1051417,2511.4,2511.0,3.98235]
[1730477037931,5.1707,2511.2,2510.6,3.98301]
[1730477038136,1.1884,2511.2,2510.5,3.98325]
[1730477038318,3.98253,2511.0,2510.4,3.98334]
[1730477038520,3.98287,2510.8,2510.2,3.98364]
[1730477038768,3.98287,2510.8,2510.0,3.98394]
[1730477038769,3.98335,2510.5,2510.0,3.98394]
[1730477038977,1.1815,2510.6,2510.2,3.98362]
[1730477039296,3.41051417,2511.3,2510.3,0.0796647]
[1730477039297,1.1815,2510.9,2510.3,0.0796647]
[1730477039440,1.1815,2510.9,2510.6,3.98301]
[1730477039636,1.1815,2511.2,2510.9,3.98253]
[1730477039872,1.1815,2511.2,2510.2,5.29415436]
[1730477039873,1.1815,2511.2,2511.1,3.98231]
[1730477040091,1.1815,2511.2,2511.0,4.06204152]
[1730477040092,0.1232417,2511.4,2511.0,3.9824]
[1730477040447,0.65189887,2511.4,2510.6,3.98309]
[1730477040641,0.1232417,2511.4,2510.3,3.0]
[1730477040847,3.98272,2510.9,2510.4,0.07965037]
[1730477041064,3.98279,2510.8,2510.4,0.07965037]
[1730477041543,5.13999,2511.0,2510.5,3.98319]
[1730477041544,1.1574,2511.0,2510.5,3.98319]
[1730477041743,1.1574,2511.0,2510.6,3.98305]
[1730477042046,1.1574,2511.0,2509.6,0.10020045]
[1730477042047,1.1035,2510.6,2509.5,1.0764]
[1730477042271,3.98375,2510.2,2509.7,3.98438]
[1730477042473,3.98375,2510.2,2509.6,3.98469]
[1730477042474,3.98393,2510.1,2509.6,7.96922]
[1730477042801,5.08662,2510.6,2509.2,5.15617]
[1730477042802,3.9836,2510.3,2509.7,0.82190105]
[1730477043092,3.98382,2510.2,2509.5,3.98478]
[1730477043256,1.1755,2509.9,2509.3,3.98517]
[1730477043457,3.98312,2510.6,2509.2,1.1709]
[1730477043458,3.9835,2510.4,2509.8,3.98436]
[1730477043682,3.9835,2510.4,2509.9,3.98411]
[1730477043889,3.9835,2510.4,2509.5,3.98483]
[1730477043890,3.98327,2510.5,2510.0,8.04769434]
[1730477044098,3.98345,2510.4,2510.0,3.98398]
[1730477044298,3.98345,2510.4,2509.2,1.1709]
[1730477044299,3.98372,2510.3,2509.6,3.98468]
[1730477044587,3.98368,2510.3,2509.6,3.98458]
[1730477044747,3.98368,2510.3,2509.7,3.98445]
[1730477044964,3.98329,2510.5,2509.6,3.98469]
[1730477045158,1.1755,2510.6,2510.1,3.98376]
[1730477045355,1.1755,2510.6,2510.3,3.98346]
[1730477045558,1.1755,2510.6,2510.2,3.98367]
[1730477045800,1.1755,2510.6,2510.3,4.06313362]
[1730477046016,5.15798,2511.0,2510.5,3.9832]
[1730477046162,5.15798,2511.0,2510.0,3.98394]
[1730477046163,3.98263,2510.9,2510.0,3.98394]
[1730477046356,3.98374,2510.2,2509.7,3.98444]
[1730477046594,3.98374,2510.2,2509.8,3.9843]
[1730477046801,1.1755,2510.6,2510.0,3.98399]
[1730477046802,3.98342,2510.5,2510.0,3.98399]
[1730477047165,1.1755,2510.6,2510.1,3.9839]
[1730477047361,3.98327,2510.5,2509.8,3.98424]
[1730477047662,3.98351,2510.4,2509.9,7.06387033]
[1730477047859,3.98351,2510.4,2509.9,6.84499113]
[1730477048061,3.98351,2510.4,2509.9,2.86079113]
[1730477048062,0.914228,2510.4,2509.9,2.86079113]
[1730477048259,3.984,2510.1,2509.6,3.98458]
[1730477048473,3.98279,2510.8,2509.4,5.15582]
[1730477048474,1.0829,2510.0,2509.4,3.98486]
[1730477048669,1.0829,2510.0,2508.9,3.98581]
[1730477048670,3.98455,2509.7,2508.9,3.98581]
[1730477048868,3.98455,2509.7,2508.7,1.0901]
[1730477048869,3.98422,2509.9,2509.0,3.98565]
[1730477049077,3.98391,2510.1,2508.4,1.303011]
[1730477049078,1.0829,2509.4,2508.4,1.303011]
[1730477049300,3.98565,2509.0,2508.4,1.303011]
[1730477049500,3.98565,2509.0,2508.5,3.98636]
[1730477049712,3.9855,2509.1,2508.6,3.98628]
[1730477049861,3.9855,2509.1,2508.7,3.98611]
[1730477050422,1.0829,2509.4,2508.9,3.98567]
[1730477050564,3.98466,2509.7,2508.7,1.1107]
[1730477050565,5.10886,2509.7,2509.2,3.98532]
[1730477050915,1.1242,2509.7,2509.3,3.98512]
[1730477051065,1.1242,2509.7,2509.3,4.06481397]
[1730477051414,3.98433,2509.9,2509.4,3.98499]
[1730477051593,5.11228,2510.0,2509.4,3.98499]
[1730477051763,5.11228,2510.0,2509.0,3.98554]
[1730477051764,3.98489,2509.5,2509.0,3.98554]
[1730477051966,3.98489,2509.5,2508.9,1.1888]
[1730477051967,5.0965,2509.4,2508.9,3.98579]
[1730477052179,5.0965,2509.4,2508.7,3.98607]
[1730477052180,3.98527,2509.3,2508.7,3.98607]
[1730477052391,3.98582,2508.9,2508.4,4.199411]
[1730477052564,3.98598,2508.8,2508.4,0.212911]
[1730477052765,3.98523,2509.3,2508.4,0.212911]
[1730477052766,3.9864,2508.6,2508.4,0.212911]
[1730477053027,3.98578,2509.0,2508.5,3.98641]
[1730477053307,5.70009,2509.4,2508.4,0.29263094]
[1730477053308,1.715,2509.4,2508.4,0.29263094]
[1730477053518,1.715,2509.4,2508.5,3.98635]
[1730477053681,3.98565,2509.0,2508.5,3.98635]
[1730477054013,3.98478,2509.6,2509.1,3.98541]
[1730477054214,7.96957,2509.6,2509.1,3.98541]
[1730477054368,3.98543,2509.2,2508.6,6.98616]
[1730477054713,1.0986,2509.0,2508.6,3.98613]
[1730477054916,1.0986,2509.2,2508.7,3.98605]
[1730477055070,3.98496,2509.5,2509.0,3.98563]
[1730477055266,1.0986,2509.6,2509.1,4.06507736]
[1730477055510,1.0986,2509.6,2509.1,3.98549]
[1730477055671,1.0986,2509.6,2509.0,3.98563]
[1730477055876,1.0986,2509.6,2509.1,0.07970687]
[1730477056102,1.0986,2509.6,2509.2,3.98532]
[1730477056303,3.98486,2509.5,2508.9,3.98573]
[1730477056607,7.96981,2509.5,2509.0,3.98556]
[1730477056785,3.98505,2509.4,2508.9,6.98578]
[1730477056983,3.98486,2509.5,2509.0,3.98558]
[1730477057191,3.98503,2509.4,2508.9,10.97149]
[1730477057398,3.98488,2509.5,2509.1,3.98548]
[1730477057630,4.02623743,2509.8,2509.3,3.98506]
[1730477057631,8.01062743,2509.8,2509.3,3.98506]
[1730477057792,8.01062743,2509.8,2509.4,0.07969615]
[1730477057793,4.02623743,2509.8,2509.4,0.07969615]
[1730477058009,4.02623743,2509.8,2509.7,3.98453]
[1730477058203,4.02623743,2509.8,2509.5,3.98485]
[1730477058386,4.02623743,2509.8,2509.4,3.98491]
[1730477058387,3.98453,2509.7,2509.1,3.98549]
[1730477058587,3.98453,2509.7,2509.1,3.98547]
[1730477058588,1.1094,2509.6,2509.1,3.98547]
[1730477058795,3.98496,2509.5,2509.1,3.0]
[1730477058991,1.1094,2509.6,2509.0,3.98555]
[1730477059230,1.1094,2509.6,2509.3,3.98508]
[1730477059391,4.02623743,2509.8,2509.4,3.98489]
[1730477059916,3.98456,2509.7,2509.3,3.0]
[1730477060135,4.02623743,2509.8,2509.3,4.06474528]
[1730477060289,4.02623743,2509.8,2509.2,3.98524]
[1730477060635,4.02623743,2509.8,2509.3,0.07969426]
[1730477060792,8.01065743,2509.8,2509.3,4.06478426]
[1730477061287,4.02623743,2509.8,2509.3,4.06484426]
[1730477061445,4.02623743,2509.8,2509.4,3.98501]
[1730477061731,4.02623743,2509.8,2509.4,3.98493]
[1730477061902,4.02623743,2509.8,2509.5,3.98479]
[1730477062305,4.02623743,2509.8,2509.3,3.98516]
[1730477062508,3.98454,2509.7,2509.1,3.98547]
[1730477062696,3.98485,2509.5,2508.9,6.98578]
[1730477062896,3.98485,2509.5,2508.7,5.12992]
[1730477062897,5.10714,2509.6,2509.1,3.98536]
[1730477063444,1.1224,2509.6,2508.8,3.98588]
[1730477063606,3.98498,2509.5,2508.9,4.06549296]
[1730477063808,3.98509,2509.4,2508.9,3.98579]
[1730477064011,3.98509,2509.4,2508.9,3.98573]
[1730477064335,3.98509,2509.4,2508.5,3.98642]
[1730477064336,3.9855,2509.1,2508.5,3.98634]
[1730477064554,1.1224,2509.0,2508.4,0.212911]
[1730477064835,1.1224,2509.0,2508.7,3.98605]
[1730477065046,5.10809,2509.0,2508.5,3.98633]
[1730477065233,3.98586,2508.9,2508.4,0.212911]
[1730477065436,3.98586,2508.9,2508.4,4.199361]
[1730477065636,1.1224,2509.0,2508.4,0.212911]
[1730477065837,5.10814,2509.0,2508.5,3.98644]
[1730477066055,5.10814,2509.0,2508.5,3.98634]
[1730477066356,3.98597,2508.8,2508.4,0.212911]
[1730477066521,3.98585,2508.9,2508.4,0.212911]
[1730477066932,3.98601,2508.8,2508.4,0.212911]
[1730477067247,3.98605,2508.8,2508.4,0.212911]